bitfinex/quotes_SOLUSD_20250424
["timestamp","ask_amount","ask_price","bid_price","bid_amount"]
[1745476519663,29.10386197,148.75,148.73,0.063]
[1745476521175,20.20268907,148.75,148.73,0.063]
[1745476530379,20.20268907,148.75,148.73,8.9641729]
[1745476531902,58.4516903,148.81,148.73,8.9641729]
[1745476531903,230.69,148.82,148.74,8.9011729]
[1745476532090,20.19997849,148.81,148.78,8.9011729]
[1745476533071,20.19997849,148.81,148.8,8.9011729]
[1745476533072,13.48,148.81,148.8,8.9011729]
[1745476536095,20.19997849,148.81,148.77,1.6352]
[1745476536300,20.19997849,148.81,148.76,7.72245248]
[1745476536301,20.19997849,148.81,148.79,8.9011729]
[1745476537801,20.19997849,148.81,148.76,6.3784]
[1745476538096,20.19997849,148.81,148.78,8.9011729]
[1745476538705,20.19997849,148.81,148.79,8.9011729]
[1745476539495,20.19997849,148.81,148.8,8.9011729]
[1745476542300,13.48,148.81,148.8,8.9011729]
[1745476557510,0.03,148.82,148.8,8.9011729]
[1745476557809,0.03,148.82,148.81,8.9011729]
[1745476561498,0.03,148.82,148.8,8.9011729]
[1745476562002,0.03,148.82,148.81,8.9011729]
[1745476564897,0.03,148.82,148.8,8.9011729]
[1745476565195,0.03,148.82,148.79,8.9011729]
[1745476566822,0.03,148.82,148.81,8.9011729]
[1745476568305,0.03,148.82,148.78,26.0]
[1745476568521,0.03,148.82,148.79,8.9011729]
[1745476576812,8.9011729,148.81,148.74,1.6352]
[1745476577013,8.9011729,148.78,148.73,8.9641729]
[1745476577334,54.28434046,148.82,148.73,0.063]
[1745476577335,8.9011729,148.74,148.73,0.063]
[1745476577628,22.3611729,148.74,148.73,0.063]
[1745476578416,29.08431395,148.74,148.73,0.063]
[1745476584111,47.73396281,148.74,148.72,0.063]
[1745476584322,47.73396281,148.74,148.71,0.063]
[1745476584323,27.55082176,148.73,148.71,0.063]
[1745476584532,8.9011729,148.72,148.71,0.063]
[1745476584912,15.62521808,148.72,148.71,0.063]
[1745476585244,15.62521808,148.72,148.69,0.063]
[1745476585245,18.64964886,148.71,148.69,0.063]
[1745476585412,8.9011729,148.7,148.69,0.063]
[1745476586235,15.62612246,148.7,148.69,0.063]
[1745476586443,15.62612246,148.7,148.65,0.063]
[1745476586740,76.61551336,148.69,148.68,1e-08]
[1745476586924,41.01082176,148.69,148.68,1e-08]
[1745476588445,47.7362236,148.69,148.68,1e-08]
[1745476591229,38.8350507,148.69,148.68,1e-08]
[1745476591436,47.7362236,148.69,148.68,1e-08]
[1745476593744,29.08657474,148.69,148.68,1e-08]
[1745476595936,20.18449734,148.71,148.68,8.90117291]
[1745476596237,20.18449734,148.71,148.69,8.9011729]
[1745476598454,13.46,148.71,148.7,8.9011729]
[1745476600853,20.18449734,148.71,148.68,8.90117291]
[1745476601147,20.18449734,148.71,148.69,8.9011729]
[1745476601724,20.18449734,148.71,148.68,1e-08]
[1745476602451,20.18449734,148.71,148.68,8.90117291]
[1745476603733,20.18449734,148.71,148.69,8.9011729]
[1745476606177,20.18449734,148.71,148.7,8.9011729]
[1745476607957,13.46,148.71,148.7,8.9011729]
[1745476609145,20.18459196,148.71,148.68,1e-08]
[1745476609357,20.18459196,148.71,148.69,8.9011729]
[1745476611154,13.46,148.71,148.69,8.9011729]
[1745476611337,13.46,148.71,148.7,8.9011729]
[1745476611734,20.18449734,148.71,148.7,8.9011729]
[1745476613455,20.18449734,148.71,148.69,8.9011729]
[1745476615666,20.18449734,148.71,148.68,1e-08]
[1745476615835,20.18449734,148.71,148.69,8.9011729]
[1745476619757,13.46,148.71,148.7,8.9011729]
[1745476620169,20.18449734,148.71,148.7,8.9011729]
[1745476620466,13.46,148.71,148.7,8.9011729]
[1745476620665,13.46,148.71,148.68,1e-08]
[1745476620851,20.18453236,148.71,148.69,8.9011729]
[1745476621241,20.18453236,148.71,148.7,8.9011729]
[1745476621242,13.46,148.71,148.7,8.9011729]
[1745476622861,0.03,148.77,148.7,42.97085762]
[1745476623068,0.03,148.77,148.76,8.9011729]
[1745476624274,6.7517853,148.77,148.75,8.9011729]
[1745476624640,6.7517853,148.77,148.75,8.65137858]
[1745476625063,6.7517853,148.77,148.73,26.0]
[1745476625270,15.6529582,148.77,148.72,8.9011729]
[1745476626554,15.6529582,148.77,148.69,26.0]
[1745476626771,8.9011729,148.76,148.71,8.9011729]
[1745476627652,6.72268907,148.75,148.71,8.9011729]
[1745476628879,15.62386197,148.75,148.7,8.9011729]
[1745476629259,6.72268907,148.75,148.71,8.9011729]
[1745476629565,6.72268907,148.75,148.72,8.9011729]
[1745476632269,13.46,148.74,148.72,8.9011729]
[1745476633561,13.46,148.74,148.73,8.9011729]
[1745476634386,13.46,148.74,148.69,33.90721768]
[1745476634679,13.46,148.74,148.73,8.9011729]
[1745476635593,20.18328592,148.74,148.72,8.9011729]
[1745476636048,20.18328592,148.74,148.73,8.9011729]
[1745476636663,20.18328592,148.74,148.72,8.9011729]
[1745476637274,13.46,148.74,148.73,8.9011729]
[1745476638164,13.46,148.74,148.69,40.63244268]
[1745476638371,20.18337774,148.74,148.72,8.9011729]
[1745476640274,13.46,148.74,148.73,8.9011729]
[1745476642065,0.03,148.77,148.73,15.62464779]
[1745476642250,0.03,148.77,148.76,8.9011729]
[1745476645184,0.03,148.77,148.7,8.06910933]
[1745476645390,8.9011729,148.76,148.72,8.9011729]
[1745476645761,8.9011729,148.76,148.71,8.9011729]
[1745476646259,8.9311729,148.77,148.72,8.9011729]
[1745476646664,6.72268907,148.75,148.71,8.9011729]
[1745476649881,6.72268907,148.75,148.72,8.9011729]
[1745476650792,15.6529582,148.77,148.72,8.9011729]
[1745476650975,15.6529582,148.77,148.73,8.9011729]
[1745476651177,15.6529582,148.77,148.72,8.9011729]
[1745476652310,6.7517853,148.77,148.73,8.9011729]
[1745476652530,15.6529582,148.77,148.73,8.9011729]
[1745476653118,6.7517853,148.77,148.74,8.9011729]
[1745476658506,6.7517853,148.77,148.73,8.9011729]
[1745476659208,13.46,148.76,148.73,8.9011729]
[1745476659713,13.46,148.76,148.72,8.9011729]
[1745476661111,6.72268907,148.75,148.72,8.9011729]
[1745476664108,6.72268907,148.75,148.71,8.9011729]
[1745476664613,6.72268907,148.75,148.72,8.9011729]
[1745476666613,20.18239645,148.76,148.74,8.9011729]
[1745476667409,20.18239645,148.76,148.75,8.9011729]
[1745476667594,13.46,148.76,148.75,8.9011729]
[1745476668710,20.18223716,148.76,148.75,8.9011729]
[1745476669219,20.18223716,148.76,148.74,8.9011729]
[1745476670423,20.18223716,148.76,148.7,7.63414008]
[1745476670598,20.18223716,148.76,148.72,8.9011729]
[1745476671327,29.08341006,148.76,148.71,8.9011729]
[1745476675635,20.18223716,148.76,148.72,8.9011729]
[1745476677530,29.08341006,148.76,148.71,8.9011729]
[1745476679038,29.08341006,148.76,148.72,8.9011729]
[1745476685649,20.18223716,148.76,148.74,8.9011729]
[1745476686138,20.18223716,148.76,148.75,8.9011729]
[1745476688436,13.46,148.76,148.75,8.9011729]
[1745476688646,13.46,148.76,148.75,44.5058645]
[1745476689145,13.46,148.76,148.75,8.9011729]
[1745476689349,13.46,148.76,148.75,44.5058645]
[1745476689647,0.03,148.77,148.75,44.5058645]
[1745476689828,0.03,148.77,148.76,8.9011729]
[1745476690640,0.03,148.77,148.76,10.24543003]
[1745476692252,0.03,148.77,148.76,8.9011729]
[1745476699150,0.03,148.77,148.76,15.62341006]
[1745476700249,0.03,148.77,148.76,8.9011729]
[1745476702141,0.03,148.77,148.75,8.9011729]
[1745476702448,10.4786729,148.77,148.72,8.9011729]
[1745476702655,8.9011729,148.76,148.71,8.9011729]
[1745476702853,13.44,148.75,148.71,8.9011729]
[1745476703645,13.44,148.75,148.69,6.72539407]
[1745476703646,13.44,148.75,148.72,8.9011729]
[1745476703956,20.16313066,148.75,148.72,8.9011729]
[1745476704765,20.16313066,148.75,148.69,25.37504293]
[1745476704958,20.16313066,148.75,148.74,8.9011729]
[1745476705254,20.16313066,148.75,148.72,8.9011729]
[1745476705451,20.16313066,148.75,148.69,26.0]
[1745476705660,8.9011729,148.74,148.69,26.0]
[1745476705855,8.9011729,148.74,148.69,34.9011729]
[1745476706441,8.9011729,148.74,148.69,26.0]
[1745476706646,8.9011729,148.73,148.68,8.90117291]
[1745476706959,8.9011729,148.72,148.68,1e-08]
[1745476707261,6.72494956,148.7,148.68,1e-08]
[1745476707434,20.16494956,148.7,148.68,1e-08]
[1745476708360,29.06612246,148.7,148.68,1e-08]
[1745476709258,8.9011729,148.69,148.68,1e-08]
[1745476711155,15.62657474,148.69,148.68,1e-08]
[1745476711666,6.72540184,148.69,148.68,1e-08]
[1745476711867,6.72540184,148.69,148.68,8.90117291]
[1745476712037,13.44,148.7,148.68,44.50586451]
[1745476712243,13.44,148.7,148.69,8.9011729]
[1745476712445,6.72372591,148.73,148.69,8.9011729]
[1745476712945,20.16325424,148.74,148.72,8.9011729]
[1745476713164,20.16325424,148.74,148.73,8.9011729]
[1745476713461,20.16325424,148.74,148.73,13.91585841]
[1745476714163,13.44,148.74,148.73,13.91585841]
[1745476714743,13.44,148.74,148.7,1.3446903]
[1745476714945,13.44,148.74,148.73,13.91585841]
[1745476715542,20.16314105,148.74,148.73,13.91585841]
[1745476717247,13.44,148.74,148.73,13.91585841]
[1745476718343,0.03,148.77,148.73,13.91585841]
[1745476718542,0.03,148.77,148.76,13.91585841]
[1745476719055,0.03,148.77,148.76,15.25997629]
[1745476720147,0.03,148.77,148.76,13.91585841]
[1745476722084,27.38585841,148.77,148.73,13.91585841]
[1745476722274,13.91585841,148.74,148.7,13.91585841]
[1745476722579,13.91585841,148.74,148.68,1e-08]
[1745476722580,13.91585841,148.73,148.69,13.91585841]
[1745476722786,21.6554,148.77,148.68,1e-08]
[1745476722787,13.44,148.72,148.7,13.91585841]
[1745476723090,13.44,148.72,148.69,13.91585841]
[1745476723276,13.44,148.72,148.7,13.91585841]
[1745476723586,13.91585841,148.71,148.68,1e-08]
[1745476724178,13.91585841,148.69,148.68,1e-08]
[1745476724358,13.91585841,148.7,148.68,1e-08]
[1745476724556,13.91585841,148.71,148.68,1e-08]
[1745476724972,13.91585841,148.69,148.68,1e-08]
[1745476725574,22.10125841,148.69,148.68,1e-08]
[1745476727263,14.91080184,148.69,148.68,1e-08]
[1745476727467,13.44,148.72,148.68,27.83171683]
[1745476727665,13.44,148.72,148.71,13.91585841]
[1745476730277,20.16404518,148.72,148.71,13.91585841]
[1745476730867,13.44,148.72,148.71,13.91585841]
[1745476731767,20.16404518,148.72,148.7,13.91585841]
[1745476735299,20.16404518,148.72,148.71,13.91585841]
[1745476737687,13.44,148.72,148.71,13.91585841]
[1745476737872,13.44,148.72,148.7,13.91585841]
[1745476738196,20.16404518,148.72,148.69,13.91585841]
[1745476740180,20.16404518,148.72,148.7,13.91585841]
[1745476740783,20.16404518,148.72,148.69,13.91585841]
[1745476741604,50.89001655,148.72,148.68,1e-08]
[1745476741984,50.89001655,148.72,148.68,13.91585842]
[1745476742183,36.97415814,148.72,148.68,13.91585842]
[1745476744503,50.89001655,148.72,148.68,13.91585842]
[1745476744719,50.89001655,148.72,148.68,1e-08]
[1745476744884,13.91585841,148.71,148.68,1e-08]
[1745476745084,13.91585841,148.7,148.68,1e-08]
[1745476745293,13.91585841,148.69,148.68,1e-08]
[1745476745502,13.91585841,148.71,148.68,1e-08]
[1745476746809,6.72494956,148.7,148.68,1e-08]
[1745476747607,13.91585841,148.69,148.68,1e-08]
[1745476747919,20.64080797,148.7,148.68,1e-08]
[1745476748087,6.72494956,148.7,148.68,1e-08]
[1745476750886,20.64080797,148.7,148.68,1e-08]
[1745476751193,6.72494956,148.7,148.68,1e-08]
[1745476757421,13.91585841,148.69,148.68,1e-08]
[1745476760823,20.64126025,148.69,148.68,1e-08]
[1745476763315,8.91834958,148.69,148.68,1e-08]
[1745476764822,15.64375142,148.69,148.68,1e-08]
[1745476767399,32.45725602,148.69,148.66,0.063]
[1745476767600,8.91834958,148.67,148.64,0.063]
[1745476767894,8.91834958,148.65,148.64,0.063]
[1745476768609,22.35834958,148.66,148.64,0.063]
[1745476769011,13.44,148.66,148.64,8.98134958]
[1745476769215,13.44,148.66,148.64,0.063]
[1745476770030,6.72721157,148.65,148.64,0.063]
[1745476770709,6.72721157,148.65,148.64,8.98134958]
[1745476771309,6.72721157,148.65,148.64,0.063]
[1745476782030,13.44,148.66,148.64,8.98134958]
[1745476782335,13.44,148.66,148.65,8.91834958]
[1745476783227,20.16510055,148.7,148.65,8.91834958]
[1745476783414,20.16510055,148.7,148.69,8.91834958]
[1745476786133,20.16510055,148.7,148.67,8.91834958]
[1745476786435,8.91834958,148.69,148.65,8.91834958]
[1745476787211,45.89582403,148.7,148.65,8.91834958]
[1745476788344,6.72585418,148.68,148.65,8.91834958]
[1745476788534,15.64420376,148.68,148.64,8.98134958]
[1745476788917,6.72585418,148.68,148.64,8.98134958]
[1745476789641,6.72585418,148.68,148.65,8.91834958]
[1745476790751,6.72585418,148.68,148.64,0.063]
[1745476790941,6.72585418,148.68,148.65,8.91834958]
[1745476792523,23.54048963,148.68,148.64,8.98134958]
[1745476792842,32.45883921,148.68,148.64,8.98134958]
[1745476793145,23.54048963,148.68,148.64,8.98134958]
[1745476795752,13.44,148.67,148.64,8.98134958]
[1745476796347,8.91834958,148.65,148.64,0.063]
[1745476797653,15.64556115,148.65,148.64,0.063]
[1745476799663,15.64556115,148.65,148.64,1e-08]
[1745476803457,6.72721157,148.65,148.64,1e-08]
[1745476803637,15.64556115,148.65,148.64,1e-08]
[1745476808566,15.64556115,148.65,148.63,1e-08]
[1745476808755,8.91834958,148.64,148.63,1e-08]
[1745476809469,8.91834958,148.64,148.62,1e-08]
[1745476809649,8.91834958,148.63,148.62,1e-08]
[1745476810873,15.64646638,148.63,148.62,1e-08]
[1745476811373,6.7281168,148.63,148.62,1e-08]
[1745476811583,15.64646638,148.63,148.62,1e-08]
[1745476812370,6.7281168,148.63,148.62,1e-08]
[1745476812766,15.64646638,148.63,148.62,1e-08]
[1745476817674,6.7281168,148.63,148.62,1e-08]
[1745476819270,15.64646638,148.63,148.62,1e-08]
[1745476820785,8.91834958,148.63,148.62,1e-08]
[1745476820961,8.91834958,148.64,148.62,1e-08]
[1745476821162,13.44,148.63,148.62,1e-08]
[1745476822584,20.1681168,148.63,148.62,1e-08]
[1745476824800,29.08646638,148.63,148.62,1e-08]
[1745476827884,20.1681168,148.63,148.62,1e-08]
[1745476828991,29.08646638,148.63,148.62,1e-08]
[1745476831674,20.1681168,148.63,148.62,1e-08]
[1745476832991,29.08646638,148.63,148.62,1e-08]
[1745476837704,20.1681168,148.63,148.62,1e-08]
[1745476853922,29.08646638,148.63,148.62,1e-08]
[1745476855016,20.1681168,148.63,148.62,1e-08]
[1745476862403,13.44,148.63,148.62,8.91834959]
[1745476868514,0.063,148.69,148.62,34.29656795]
[1745476868515,13.44,148.68,148.62,34.29656795]
[1745476868710,13.44,148.68,148.67,8.91834958]
[1745476871212,20.16585418,148.68,148.66,8.91834958]
[1745476872108,20.16585418,148.68,148.67,8.91834958]
[1745476872513,13.44,148.68,148.67,8.91834958]
[1745476874021,13.44,148.68,148.67,15.64465616]
[1745476874718,13.44,148.68,148.67,69.96770334]
[1745476874929,0.063,148.69,148.67,69.96770334]
[1745476875124,0.063,148.69,148.68,44.5917479]
[1745476875330,0.063,148.69,148.68,8.91834958]
[1745476877614,0.063,148.69,148.68,10.26321962]
[1745476880219,0.063,148.69,148.68,52.66247212]
[1745476880423,0.063,148.71,148.7,26.0]
[1745476880621,0.063,148.71,148.7,34.91834958]
[1745476883742,13.503,148.71,148.69,8.91834958]
[1745476883915,13.503,148.71,148.68,8.91834958]
[1745476884337,13.503,148.71,148.65,26.0]
[1745476884524,13.503,148.71,148.68,8.91834958]
[1745476884934,20.22790186,148.71,148.68,8.91834958]
[1745476885138,20.22790186,148.71,148.69,8.91834958]
[1745476885860,20.22790186,148.71,148.65,32.72706639]
[1745476885861,13.503,148.71,148.7,8.91834958]
[1745476886439,0.063,148.71,148.7,36.26312393]
[1745476886931,0.063,148.71,148.7,34.91834958]
[1745476887341,0.063,148.71,148.7,42.98806747]
[1745476888655,0.063,148.71,148.7,61.63771633]
[1745476890948,0.063,148.71,148.7,54.91276677]
[1745476895865,0.063,148.71,148.7,36.26311791]
[1745476896034,0.063,148.71,148.7,34.91834958]
[1745476897761,0.063,148.71,148.69,8.91834958]
[1745476899539,0.063,148.71,148.7,8.91834958]
[1745476904555,0.063,148.71,148.69,8.91834958]
[1745476904765,0.063,148.71,148.68,34.91834958]
[1745476906065,0.063,148.71,148.69,8.91834958]
[1745476908047,0.063,148.71,148.7,8.91834958]
[1745476908457,0.063,148.71,148.69,8.91834958]
[1745476908869,13.483,148.71,148.69,8.91834958]
[1745476910646,13.483,148.71,148.68,34.91834958]
[1745476911368,29.1258975,148.71,148.67,8.91834958]
[1745476911981,29.1258975,148.71,148.7,8.91834958]
[1745476911982,0.063,148.71,148.7,8.91834958]
[1745476912150,0.063,148.71,148.7,27.56799844]
[1745476912549,0.063,148.71,148.7,34.292948]
[1745476914453,0.063,148.72,148.71,44.64964886]
[1745476914653,0.063,148.72,148.71,61.63692775]
[1745476918974,0.063,148.74,148.73,26.0]
[1745476919167,0.063,148.74,148.73,36.26266542]
[1745476919465,0.063,148.74,148.73,54.91231428]
[1745476920890,0.063,148.74,148.73,34.91834958]
[1745476926762,0.063,148.74,148.71,26.0]
[1745476926955,0.063,148.74,148.72,8.91834958]
[1745476927667,0.063,148.74,148.7,8.91834958]
[1745476927871,1.6348,148.74,148.7,8.91834958]
[1745476928181,1.6348,148.74,148.71,8.91834958]
[1745476928895,8.35829719,148.74,148.71,8.91834958]
[1745476931883,8.35829719,148.74,148.7,34.91834958]
[1745476932082,17.27664677,148.74,148.7,34.91834958]
[1745476932977,8.35829719,148.74,148.7,34.91834958]
[1745476936169,8.35829719,148.74,148.71,8.91834958]
[1745476937295,8.35829719,148.74,148.7,8.91834958]
[1745476937479,8.35829719,148.74,148.71,8.91834958]
[1745476938291,8.35829719,148.74,148.7,8.91834958]
[1745476938887,20.1437173,148.73,148.7,8.91834958]
[1745476941595,13.42,148.73,148.7,8.91834958]
[1745476941777,13.42,148.73,148.71,8.91834958]
[1745476944077,20.14378114,148.73,148.7,8.91834958]
[1745476945800,8.91834958,148.72,148.68,26.0]
[1745476945997,8.91834958,148.69,148.66,0.03]
[1745476946203,22.33834958,148.68,148.66,0.03]
[1745476946389,13.42,148.67,148.66,0.03]
[1745476947302,20.14630658,148.67,148.66,0.03]
[1745476952816,21.68900658,148.67,148.64,0.03]
[1745476953005,8.91834958,148.65,148.64,0.03]
[1745476954289,21.68900658,148.67,148.64,0.03]
[1745476954513,30.60735616,148.67,148.64,0.03]
[1745476958308,6.72721157,148.65,148.64,0.03]
[1745476960108,6.72690096,148.66,148.64,0.03]
[1745476960411,6.72690096,148.66,148.64,8.94834958]
[1745476960713,6.72690096,148.66,148.64,0.03]
[1745476962107,13.42,148.66,148.64,8.94834958]
[1745476963014,13.42,148.66,148.65,8.91834958]
[1745476973032,13.42,148.66,148.65,26.0]
[1745476973233,13.42,148.66,148.65,34.91834958]
[1745476973928,13.42,148.66,148.65,8.91834958]
[1745476974229,13.42,148.66,148.64,8.94834958]
[1745476974431,13.42,148.66,148.65,8.91834958]
[1745476978040,20.14687285,148.66,148.64,0.03]
[1745476978232,20.14687285,148.66,148.64,8.94834958]
[1745476978411,13.42,148.66,148.64,8.94834958]
[1745476978604,20.1468048,148.66,148.64,0.03]
[1745476980034,20.1468048,148.66,148.64,8.94834958]
[1745476981627,20.1468048,148.66,148.64,0.03]
[1745476982223,30.57165438,148.66,148.64,0.03]
[1745476982824,8.91834958,148.65,148.64,0.03]
[1745476983031,30.57165438,148.66,148.64,0.03]
[1745476984238,15.28474958,148.65,148.64,0.03]
[1745476984410,15.28474958,148.65,148.64,1e-08]
[1745476986022,22.01196115,148.65,148.64,1e-08]
[1745476986938,20.15614886,148.64,148.63,1e-08]
[1745476987133,29.07449844,148.64,148.63,1e-08]
[1745476987432,29.07449844,148.64,148.62,1e-08]
[1745476987433,259.91449844,148.64,148.62,1e-08]
[1745476987616,27.56799844,148.63,148.62,1e-08]
[1745476988037,69.96951356,148.63,148.62,1e-08]
[1745476988926,95.96951356,148.63,148.62,1e-08]
[1745476989126,18.64964886,148.62,148.59,0.03]
[1745476989342,8.91834958,148.6,148.59,0.03]
[1745476990339,15.64782468,148.6,148.59,0.03]
[1745476992339,68.17037354,148.6,148.57,0.063]
[1745476992546,8.91834958,148.58,148.57,0.063]
[1745476992746,8.91834958,148.58,148.57,1e-08]
[1745476994138,15.64873051,148.58,148.57,1e-08]
[1745476995239,18.64964886,148.57,148.55,1e-08]
[1745476995412,22.33834958,148.56,148.55,1e-08]
[1745476996035,29.0696366,148.56,148.55,1e-08]
[1745477014468,20.15128702,148.56,148.55,1e-08]
[1745477017562,29.0696366,148.56,148.55,1e-08]
[1745477017763,20.15128702,148.56,148.55,1e-08]
[1745477018564,6.72992798,148.59,148.55,8.91834959]
[1745477018768,13.42,148.57,148.55,8.91834959]
[1745477019139,13.42,148.57,148.55,1e-08]
[1745477020770,20.1508975,148.57,148.55,1e-08]
[1745477021170,20.1508975,148.57,148.55,8.91834959]
[1745477021466,20.1508975,148.57,148.55,1e-08]
[1745477027376,8.91834958,148.56,148.55,1e-08]
[1745477029174,15.6496366,148.56,148.55,1e-08]
[1745477029349,15.6496366,148.56,148.5,26.0]
[1745477029350,23.55950457,148.56,148.5,26.0]
[1745477029550,8.91834958,148.55,148.5,34.91834958]
[1745477030966,6.73219334,148.54,148.5,34.91834958]
[1745477031451,6.73219334,148.54,148.47,1.602]
[1745477031652,6.73219334,148.54,148.5,8.91834958]
[1745477032367,6.73219334,148.54,148.51,8.91834958]
[1745477032559,13.42,148.53,148.51,8.91834958]
[1745477033080,20.1526995,148.53,148.51,8.91834958]
[1745477033281,20.1526995,148.53,148.5,8.91834958]
[1745477033499,20.1526995,148.53,148.49,34.91834958]
[1745477033785,20.1526995,148.53,148.5,8.91834958]
[1745477035780,20.1526995,148.53,148.47,1.602]
[1745477035781,29.07104908,148.53,148.47,1.602]
[1745477035998,20.1526995,148.53,148.49,8.91834958]
[1745477036183,20.1526995,148.53,148.5,8.91834958]
[1745477036983,20.1526995,148.53,148.49,8.91834958]
[1745477037386,29.07104908,148.53,148.49,8.91834958]
[1745477039767,8.91834958,148.52,148.47,34.91834958]
[1745477040589,8.91834958,148.51,148.46,26.0]
[1745477040763,8.91834958,148.52,148.47,8.91834958]
[1745477041981,6.73355329,148.51,148.47,8.91834958]
[1745477042586,6.73319805,148.52,148.5,8.91834958]
[1745477042791,20.15279276,148.53,148.51,8.91834958]
[1745477043165,20.15279276,148.53,148.5,8.91834958]
[1745477045278,20.15279276,148.53,148.47,42.40838734]
[1745477045279,20.15279276,148.53,148.51,8.91834958]
[1745477050898,13.42,148.53,148.52,8.91834958]
[1745477059707,20.15265526,148.53,148.51,8.91834958]
[1745477059909,20.15265526,148.53,148.52,8.91834958]
[1745477059910,13.42,148.53,148.52,8.91834958]
[1745477061711,13.42,148.53,148.49,51.38393864]
[1745477061913,13.42,148.53,148.52,8.91834958]
[1745477067203,20.1526466,148.53,148.51,8.91834958]
[1745477068101,13.42,148.53,148.52,8.91834958]
[1745477071128,20.1526466,148.53,148.52,8.91834958]
[1745477077126,13.42,148.53,148.52,8.91834958]
[1745477081941,20.15129078,148.56,148.52,8.91834958]
[1745477082231,20.15129078,148.56,148.54,8.91834958]
[1745477097342,20.15129078,148.56,148.53,8.91834958]
[1745477097543,20.15129078,148.56,148.54,8.91834958]
[1745477103252,20.15129078,148.56,148.52,8.91834958]
[1745477103647,36.97950833,148.56,148.52,8.91834958]
[1745477104071,8.91834958,148.55,148.51,8.91834958]
[1745477104374,6.73219334,148.54,148.51,8.91834958]
[1745477107079,6.73174015,148.55,148.51,8.91834958]
[1745477110776,6.73174015,148.55,148.53,8.91834958]
[1745477110970,20.1514679,148.56,148.5,26.0]
[1745477111270,20.1514679,148.56,148.54,8.91834958]
[1745477112259,20.1514679,148.56,148.55,8.91834958]
[1745477112672,20.1514679,148.56,148.54,8.91834958]
[1745477113976,20.1514679,148.56,148.55,8.91834958]
[1745477117379,20.1514679,148.56,148.54,8.91834958]
[1745477117576,29.06981748,148.56,148.52,8.91834958]
[1745477117761,8.91834958,148.55,148.51,8.91834958]
[1745477118655,6.73219334,148.54,148.51,8.91834958]
[1745477119062,6.73219334,148.54,148.49,26.0]
[1745477119063,6.73219334,148.54,148.52,8.91834958]
[1745477120382,6.73174015,148.55,148.52,8.91834958]
[1745477126292,6.73174015,148.55,148.49,26.0]
[1745477126465,8.91834958,148.52,148.45,12.09767947]
[1745477126780,13.42,148.51,148.47,8.91834958]
[1745477126977,22.33834958,148.51,148.46,8.91834958]
[1745477127994,6.73400673,148.5,148.47,8.91834958]
[1745477128163,6.73400673,148.5,148.45,36.52177947]
[1745477128363,6.73400673,148.5,148.47,8.91834958]
[1745477130193,6.73400673,148.5,148.45,26.0]
[1745477130392,6.73400673,148.5,148.47,8.91834958]
[1745477130860,6.73400673,148.5,148.48,8.91834958]
[1745477131060,1.5351,148.57,148.51,26.0]
[1745477131291,13.42,148.56,148.52,18.64964886]
[1745477131594,13.42,148.56,148.54,8.91834958]
[1745477132088,13.42,148.56,148.51,18.64964886]
[1745477132259,6.73174015,148.55,148.5,26.0]
[1745477132573,6.73174015,148.55,148.53,8.91834958]
[1745477133991,6.73174015,148.55,148.54,8.91834958]
[1745477134297,20.15140257,148.56,148.54,8.91834958]
[1745477135393,20.15140257,148.56,148.55,8.91834958]
[1745477136574,20.15140257,148.56,148.54,8.91834958]
[1745477139193,20.15140257,148.56,148.53,8.91834958]
[1745477140375,36.97962012,148.56,148.52,8.91834958]
[1745477140569,45.8979697,148.56,148.51,8.91834958]
[1745477141595,45.8979697,148.56,148.49,26.0]
[1745477141789,45.8979697,148.56,148.52,8.91834958]
[1745477142686,36.97962012,148.56,148.52,8.91834958]
[1745477143491,8.91834958,148.54,148.47,18.64964886]
[1745477143695,8.91834958,148.54,148.5,8.91834958]
[1745477144267,8.91834958,148.53,148.48,8.91834958]
[1745477145571,6.73309991,148.52,148.48,8.91834958]
[1745477145771,13.4,148.51,148.48,8.91834958]
[1745477145971,13.4,148.51,148.47,26.0]
[1745477146199,13.4,148.51,148.48,8.91834958]
[1745477147194,13.4,148.51,148.49,8.91834958]
[1745477147385,13.4,148.51,148.5,8.91834958]
[1745477147585,20.13355329,148.51,148.5,8.91834958]
[1745477148501,20.13355329,148.51,148.49,8.91834958]
[1745477150998,20.13355329,148.51,148.5,8.91834958]